[Event "Titled Tuesday Blitz January 10 Late 2023"]
[White "Gatterer, Florian"]
[Black "Korchmar, Vasiliy"]
[WhiteFideId "811688"]
[BlackFideId "24131750"]
[WhiteElo "2170"]
[BlackElo "2438"]
[Result "0-1"]
[Round "04"]
[TimeControl "180+2"]
[Date "2023.01.10"]
[WhiteClock "0:00:14"]
[BlackClock "0:00:28"]

1. Nf3 {[%clk 0:00:00]}  d5 {[%clk 0:00:00]} 2. e3 {[%clk 0:03:00]}  Nf6 {[%clk 0:02:59]} 3. c4 {[%clk 0:03:01]}  c6 {[%clk 0:02:59]} 4. Nc3 {[%clk 0:03:01]}  e6 {[%clk 0:02:59]} 5. b3 {[%clk 0:03:01]}  Bd6 {[%clk 0:02:59]} 6. Bb2 {[%clk 0:03:01]}  O-O {[%clk 0:02:58]} 7. Qc2 {[%clk 0:03:01]}  e5 {[%clk 0:02:58]} 8. cxd5 {[%clk 0:03:01]}  cxd5 {[%clk 0:02:58]} 9. Nb5 {[%clk 0:02:53]}  Nc6 {[%clk 0:02:59]} 10. Nxd6 {[%clk 0:02:53]}  Qxd6 {[%clk 0:02:58]} 11. d4 {[%clk 0:02:53]}  Ne4 {[%clk 0:02:59]} 12. dxe5 {[%clk 0:02:53]}  Qb4+ {[%clk 0:02:43]} 13. Nd2 {[%clk 0:02:31]}  Bf5 {[%clk 0:02:42]} 14. a3 {[%clk 0:02:31]}  Qxd2+ {[%clk 0:02:33]} 15. Qxd2 {[%clk 0:02:32]}  Nxd2 {[%clk 0:01:54]} 16. Kxd2 {[%clk 0:02:31]}  Na5 {[%clk 0:01:55]} 17. Rd1 {[%clk 0:02:30]}  Rac8 {[%clk 0:01:56]} 18. Bd3 {[%clk 0:01:04]}  Nxb3+ {[%clk 0:01:48]} 19. Ke2 {[%clk 0:01:01]}  Bxd3+ {[%clk 0:01:46]} 20. Kxd3 {[%clk 0:01:01]}  h6 {[%clk 0:01:42]} 21. h4 {[%clk 0:01:01]}  Rc4 {[%clk 0:01:25]} 22. Bd4 {[%clk 0:00:56]}  a5 {[%clk 0:01:24]} 23. Rb1 {[%clk 0:00:45]}  a4 {[%clk 0:01:13]} 24. Rb2 {[%clk 0:00:29]}  Rfc8 {[%clk 0:01:12]} 25. Rd1 {[%clk 0:00:29]}  b5 {[%clk 0:01:11]} 26. g3 {[%clk 0:00:27]}  h5 {[%clk 0:01:11]} 27. Ke2 {[%clk 0:00:26]}  Kf8 {[%clk 0:01:10]} 28. f4 {[%clk 0:00:26]}  g6 {[%clk 0:01:06]} 29. Kf3 {[%clk 0:00:24]}  Ke7 {[%clk 0:01:05]} 30. f5 {[%clk 0:00:24]}  gxf5 {[%clk 0:01:06]} 31. Kf4 {[%clk 0:00:24]}  Ke6 {[%clk 0:01:06]} 32. Kg5 {[%clk 0:00:24]}  Rg8+ {[%clk 0:01:07]} 33. Kf4 {[%clk 0:00:24]}  Rg4+ {[%clk 0:00:57]} 34. Kf3 {[%clk 0:00:18]}  Nxd4+ {[%clk 0:00:42]} 35. exd4 {[%clk 0:00:18]}  Rgxd4 {[%clk 0:00:43]} 36. Rxd4 {[%clk 0:00:19]}  Rxd4 {[%clk 0:00:43]} 37. Rxb5 {[%clk 0:00:19]}  Kxe5 {[%clk 0:00:44]} 38. Ke3 {[%clk 0:00:19]}  Rg4 {[%clk 0:00:43]} 39. Kf3 {[%clk 0:00:16]}  Rc4 {[%clk 0:00:43]} 40. Rb7 {[%clk 0:00:17]}  Rc3+ {[%clk 0:00:43]} 41. Kg2 {[%clk 0:00:13]}  Kf6 {[%clk 0:00:39]} 42. Rb6+ {[%clk 0:00:13]}  Kg7 {[%clk 0:00:32]} 43. Rb5 {[%clk 0:00:12]}  Rxa3 {[%clk 0:00:31]} 44. Rxd5 {[%clk 0:00:13]}  Kg6 {[%clk 0:00:29]} 45. Rd6+ {[%clk 0:00:13]}  f6 {[%clk 0:00:30]} 46. Rd4 {[%clk 0:00:12]}  Ra2+ {[%clk 0:00:30]} 47. Kh3 {[%clk 0:00:11]}  a3 {[%clk 0:00:29]} 48. Ra4 {[%clk 0:00:10]}  Ra1 {[%clk 0:00:29]} 49. Rb4 {[%clk 0:00:11]}  a2 {[%clk 0:00:29]} 50. Ra4 {[%clk 0:00:10]}  Rh1+ {[%clk 0:00:28]} 51. Kg2 {[%clk 0:00:10]}  a1=Q {[%clk 0:00:28]} 52. Rxa1 {[%clk 0:00:09]}  Rxa1 {[%clk 0:00:29]} 53. Kh3 {[%clk 0:00:09]}  f4 {[%clk 0:00:30]} 54. Kg2 {[%clk 0:00:09]}  fxg3 {[%clk 0:00:30]} 55. Kh3 {[%clk 0:00:10]}  Kf5 {[%clk 0:00:29]} 56. Kg2 {[%clk 0:00:11]}  Kf4 {[%clk 0:00:29]} 57. Kh3 {[%clk 0:00:12]}  Rh1+ {[%clk 0:00:28]} 58. Kg2 {[%clk 0:00:13]}  Rh2+ {[%clk 0:00:29]} 59. Kg1 {[%clk 0:00:14]}  Kf3 {[%clk 0:00:28]} 0-1


[Site "https://www.chess.com"]

[Event "Titled Tuesday Blitz January 10 Late 2023"]
[White "Muhammad, Shahzeb"]
[Black "Saveliev, Alexei"]
[WhiteFideId "7804806"]
[BlackFideId "24128546"]
[WhiteElo "1853"]
[BlackElo "2385"]
[Result "0-1"]
[Round "04"]
[TimeControl "180+2"]
[Date "2023.01.10"]
[WhiteClock "0:00:05"]
[BlackClock "0:01:50"]

1. e4 {[%clk 0:00:00]}  g6 {[%clk 0:00:00]} 2. d4 {[%clk 0:03:00]}  Bg7 {[%clk 0:02:59]} 3. Nc3 {[%clk 0:02:58]}  d6 {[%clk 0:02:59]} 4. Bg5 {[%clk 0:02:57]}  Nc6 {[%clk 0:02:59]} 5. Nge2 {[%clk 0:02:49]}  h6 {[%clk 0:02:57]} 6. Be3 {[%clk 0:02:47]}  e5 {[%clk 0:02:57]} 7. f3 {[%clk 0:02:46]}  f5 {[%clk 0:02:56]} 8. d5 {[%clk 0:02:46]}  Nce7 {[%clk 0:02:56]} 9. Qd2 {[%clk 0:02:31]}  Nf6 {[%clk 0:02:55]} 10. O-O-O {[%clk 0:02:27]}  b5 {[%clk 0:02:54]} 11. exf5 {[%clk 0:02:17]}  Nxf5 {[%clk 0:02:51]} 12. Nxb5 {[%clk 0:02:12]}  O-O {[%clk 0:02:52]} 13. Ng3 {[%clk 0:02:09]}  Nxe3 {[%clk 0:02:51]} 14. Qxe3 {[%clk 0:02:06]}  a6 {[%clk 0:02:51]} 15. Nc3 {[%clk 0:02:06]}  Rb8 {[%clk 0:02:50]} 16. Nge4 {[%clk 0:02:02]}  a5 {[%clk 0:02:49]} 17. h4 {[%clk 0:02:02]}  Bf5 {[%clk 0:02:49]} 18. Rg1 {[%clk 0:01:58]}  Nxe4 {[%clk 0:02:45]} 19. fxe4 {[%clk 0:01:48]}  Bg4 {[%clk 0:02:37]} 20. Be2 {[%clk 0:01:47]}  Bxe2 {[%clk 0:02:37]} 21. Nxe2 {[%clk 0:01:47]}  Qxh4 {[%clk 0:02:37]} 22. Kb1 {[%clk 0:01:46]}  Rb4 {[%clk 0:02:37]} 23. Nc3 {[%clk 0:01:45]}  h5 {[%clk 0:02:30]} 24. Qa7 {[%clk 0:01:20]}  Rfb8 {[%clk 0:02:19]} 25. b3 {[%clk 0:01:06]}  a4 {[%clk 0:02:07]} 26. Qxc7 {[%clk 0:01:01]}  axb3 {[%clk 0:02:02]} 27. axb3 {[%clk 0:01:00]}  Qf2 {[%clk 0:02:02]} 28. Kc1 {[%clk 0:00:58]}  Rxb3 {[%clk 0:01:57]} 29. cxb3 {[%clk 0:00:05]}  Bh6+ {[%clk 0:01:50]} 0-1


[Site "https://www.chess.com"]

[Event "Titled Tuesday Blitz January 10 Late 2023"]
[White "Yang, Kevin"]
[Black "Jodorcovsky Werjivker, Paulo"]
[WhiteFideId "30908485"]
[BlackFideId "3700305"]
[WhiteElo "2096"]
[BlackElo "2182"]
[Result "1-0"]
[Round "04"]
[TimeControl "180+2"]
[Date "2023.01.10"]
[WhiteClock "0:00:03"]
[BlackClock "0:00:33"]

1. b3 {[%clk 0:00:00]}  e5 {[%clk 0:00:00]} 2. Bb2 {[%clk 0:03:00]}  Nc6 {[%clk 0:02:58]} 3. c4 {[%clk 0:03:00]}  f5 {[%clk 0:02:58]} 4. e3 {[%clk 0:03:00]}  Nf6 {[%clk 0:02:58]} 5. a3 {[%clk 0:02:55]}  d6 {[%clk 0:02:58]} 6. Nf3 {[%clk 0:02:47]}  g6 {[%clk 0:02:55]} 7. d4 {[%clk 0:02:45]}  Bg7 {[%clk 0:02:56]} 8. dxe5 {[%clk 0:02:44]}  Ng4 {[%clk 0:02:49]} 9. h3 {[%clk 0:02:41]}  Ngxe5 {[%clk 0:02:49]} 10. Nxe5 {[%clk 0:02:34]}  dxe5 {[%clk 0:02:49]} 11. Qxd8+ {[%clk 0:02:33]}  Nxd8 {[%clk 0:02:50]} 12. Nc3 {[%clk 0:02:30]}  c6 {[%clk 0:02:51]} 13. O-O-O {[%clk 0:02:28]}  O-O {[%clk 0:02:50]} 14. Na4 {[%clk 0:02:26]}  Ne6 {[%clk 0:02:50]} 15. c5 {[%clk 0:02:19]}  Ng5 {[%clk 0:02:45]} 16. Bc4+ {[%clk 0:02:17]}  Kh8 {[%clk 0:02:41]} 17. f4 {[%clk 0:02:12]}  exf4 {[%clk 0:02:41]} 18. Bxg7+ {[%clk 0:02:01]}  Kxg7 {[%clk 0:02:38]} 19. exf4 {[%clk 0:01:54]}  Ne4 {[%clk 0:02:39]} 20. Rhe1 {[%clk 0:01:55]}  b5 {[%clk 0:02:38]} 21. cxb6 {[%clk 0:01:55]}  axb6 {[%clk 0:02:19]} 22. Nxb6 {[%clk 0:01:55]}  Rxa3 {[%clk 0:02:20]} 23. Kb2 {[%clk 0:01:52]}  Ra5 {[%clk 0:02:21]} 24. Ra1 {[%clk 0:01:49]}  Rxa1 {[%clk 0:02:16]} 25. Rxa1 {[%clk 0:01:47]}  Nc5 {[%clk 0:01:40]} 26. Ra7+ {[%clk 0:01:48]}  Kh6 {[%clk 0:01:37]} 27. Ra8 {[%clk 0:01:38]}  Rd8 {[%clk 0:01:21]} 28. Rxc8 {[%clk 0:01:33]}  Rd2+ {[%clk 0:01:14]} 29. Ka3 {[%clk 0:01:29]}  Rxg2 {[%clk 0:01:14]} 30. Rxc6 {[%clk 0:01:29]}  Ne4 {[%clk 0:01:12]} 31. Bd5 {[%clk 0:01:26]}  Rd2 {[%clk 0:01:13]} 32. Bxe4 {[%clk 0:00:58]}  fxe4 {[%clk 0:01:11]} 33. Re6 {[%clk 0:00:56]}  Rd3 {[%clk 0:01:12]} 34. Rxe4 {[%clk 0:00:56]}  Rxh3 {[%clk 0:01:10]} 35. Ka4 {[%clk 0:00:55]}  g5 {[%clk 0:01:11]} 36. f5 {[%clk 0:00:52]}  Kg7 {[%clk 0:01:08]} 37. Nd5 {[%clk 0:00:48]}  Rd3 {[%clk 0:01:04]} 38. Re7+ {[%clk 0:00:47]}  Kf8 {[%clk 0:01:02]} 39. Re5 {[%clk 0:00:47]}  Kf7 {[%clk 0:01:02]} 40. f6 {[%clk 0:00:47]}  g4 {[%clk 0:01:00]} 41. Re7+ {[%clk 0:00:45]}  Kg6 {[%clk 0:00:59]} 42. Rg7+ {[%clk 0:00:45]}  Kh6 {[%clk 0:00:58]} 43. Ne7 {[%clk 0:00:37]}  Rf3 {[%clk 0:00:58]} 44. Ng8+ {[%clk 0:00:29]}  Kh5 {[%clk 0:00:51]} 45. Rxh7+ {[%clk 0:00:27]}  Kg6 {[%clk 0:00:52]} 46. Rg7+ {[%clk 0:00:26]}  Kh5 {[%clk 0:00:52]} 47. f7 {[%clk 0:00:26]}  g3 {[%clk 0:00:53]} 48. b4 {[%clk 0:00:25]}  Kh4 {[%clk 0:00:53]} 49. Ne7 {[%clk 0:00:17]}  g2 {[%clk 0:00:47]} 50. Rxg2 {[%clk 0:00:13]}  Rxf7 {[%clk 0:00:43]} 51. Nd5 {[%clk 0:00:09]}  Rd7 {[%clk 0:00:43]} 52. Nb6 {[%clk 0:00:09]}  Rd4 {[%clk 0:00:41]} 53. Ka5 {[%clk 0:00:09]}  Rd1 {[%clk 0:00:41]} 54. Kb5 {[%clk 0:00:08]}  Rf1 {[%clk 0:00:41]} 55. Ka6 {[%clk 0:00:06]}  Ra1+ {[%clk 0:00:40]} 56. Kb7 {[%clk 0:00:05]}  Rb1 {[%clk 0:00:40]} 57. Nd5 {[%clk 0:00:04]}  Rd1 {[%clk 0:00:40]} 58. Kc6 {[%clk 0:00:04]}  Rc1+ {[%clk 0:00:40]} 59. Kd6 {[%clk 0:00:04]}  Rb1 {[%clk 0:00:40]} 60. Rc2 {[%clk 0:00:05]}  Kg4 {[%clk 0:00:40]} 61. Kc5 {[%clk 0:00:04]}  Kf5 {[%clk 0:00:39]} 62. b5 {[%clk 0:00:05]}  Ke6 {[%clk 0:00:40]} 63. Kc6 {[%clk 0:00:03]}  Rd1 {[%clk 0:00:39]} 64. b6 {[%clk 0:00:04]}  Rxd5 {[%clk 0:00:37]} 65. Re2+ {[%clk 0:00:03]}  Re5 {[%clk 0:00:37]} 66. Rxe5+ {[%clk 0:00:03]}  Kxe5 {[%clk 0:00:33]} 67. b7 {[%clk 0:00:03]} 1-0


[Site "https://www.chess.com"]

[Event "Titled Tuesday Blitz January 10 Late 2023"]
[White "Taboas Rodriguez, Daniel"]
[Black "Sivakumar, Shaashwath"]
[WhiteFideId "2208466"]
[BlackFideId "30912156"]
[WhiteElo "2371"]
[BlackElo "2198"]
[Result "0-1"]
[Round "04"]
[TimeControl "180+2"]
[Date "2023.01.10"]
[WhiteClock "0:01:09"]
[BlackClock "0:00:05"]

1. d4 {[%clk 0:00:00]}  d5 {[%clk 0:00:00]} 2. Nf3 {[%clk 0:03:00]}  Nf6 {[%clk 0:02:59]} 3. c4 {[%clk 0:02:57]}  c6 {[%clk 0:02:56]} 4. cxd5 {[%clk 0:02:57]}  cxd5 {[%clk 0:02:45]} 5. Nc3 {[%clk 0:02:56]}  Nc6 {[%clk 0:02:45]} 6. Bf4 {[%clk 0:02:57]}  Bf5 {[%clk 0:02:43]} 7. e3 {[%clk 0:02:57]}  e6 {[%clk 0:02:33]} 8. Qb3 {[%clk 0:02:57]}  Bb4 {[%clk 0:02:31]} 9. Bb5 {[%clk 0:02:56]}  O-O {[%clk 0:02:31]} 10. O-O {[%clk 0:02:56]}  Bxc3 {[%clk 0:02:30]} 11. Qxc3 {[%clk 0:02:56]}  Rc8 {[%clk 0:02:25]} 12. Rfc1 {[%clk 0:02:57]}  Qb6 {[%clk 0:02:22]} 13. Qc5 {[%clk 0:02:58]}  Qxc5 {[%clk 0:02:02]} 14. dxc5 {[%clk 0:02:57]}  Ne4 {[%clk 0:01:57]} 15. Nd4 {[%clk 0:02:58]}  Bg6 {[%clk 0:01:50]} 16. Nxc6 {[%clk 0:02:44]}  bxc6 {[%clk 0:01:40]} 17. Ba6 {[%clk 0:02:37]}  Rce8 {[%clk 0:01:38]} 18. f3 {[%clk 0:02:38]}  e5 {[%clk 0:01:25]} 19. fxe4 {[%clk 0:02:24]}  exf4 {[%clk 0:01:23]} 20. exd5 {[%clk 0:02:12]}  fxe3 {[%clk 0:01:23]} 21. dxc6 {[%clk 0:02:13]}  Re6 {[%clk 0:00:53]} 22. Bb7 {[%clk 0:02:12]}  Be4 {[%clk 0:00:53]} 23. b4 {[%clk 0:02:07]}  f5 {[%clk 0:00:53]} 24. b5 {[%clk 0:02:01]}  f4 {[%clk 0:00:37]} 25. Rc3 {[%clk 0:01:52]}  Rg6 {[%clk 0:00:35]} 26. g3 {[%clk 0:01:35]}  fxg3 {[%clk 0:00:07]} 27. Rxe3 {[%clk 0:01:22]}  gxh2+ {[%clk 0:00:07]} 28. Kxh2 {[%clk 0:01:18]}  Rf2+ {[%clk 0:00:07]} 29. Kh3 {[%clk 0:01:19]}  Bf5+ {[%clk 0:00:06]} 30. Kh4 {[%clk 0:01:09]}  Rh2+ {[%clk 0:00:05]} 0-1


[Site "https://www.chess.com"]

[Event "Titled Tuesday Blitz January 10 Late 2023"]
[White "Perez Rodriguez, Jennifer"]
[Black "Carnicelli, Valerio"]
[WhiteFideId "3507831"]
[BlackFideId "856185"]
[WhiteElo "2242"]
[BlackElo "2370"]
[Result "0-1"]
[Round "04"]
[TimeControl "180+2"]
[Date "2023.01.10"]
[WhiteClock "0:01:01"]
[BlackClock "0:01:40"]

1. e4 {[%clk 0:00:00]}  g6 {[%clk 0:00:00]} 2. d4 {[%clk 0:03:00]}  Bg7 {[%clk 0:02:59]} 3. Nc3 {[%clk 0:03:00]}  d6 {[%clk 0:03:00]} 4. Be3 {[%clk 0:03:01]}  e6 {[%clk 0:03:00]} 5. Qd2 {[%clk 0:03:01]}  h6 {[%clk 0:03:00]} 6. Bd3 {[%clk 0:03:02]}  Ne7 {[%clk 0:03:00]} 7. O-O-O {[%clk 0:03:00]}  a6 {[%clk 0:03:00]} 8. h4 {[%clk 0:03:00]}  b5 {[%clk 0:02:59]} 9. Kb1 {[%clk 0:03:00]}  Nd7 {[%clk 0:02:59]} 10. h5 {[%clk 0:02:59]}  g5 {[%clk 0:02:57]} 11. f4 {[%clk 0:02:58]}  gxf4 {[%clk 0:02:57]} 12. Bxf4 {[%clk 0:02:58]}  Bxd4 {[%clk 0:02:58]} 13. Nf3 {[%clk 0:02:58]}  Bg7 {[%clk 0:02:56]} 14. Ne2 {[%clk 0:02:55]}  Nc5 {[%clk 0:02:55]} 15. e5 {[%clk 0:02:39]}  Nd5 {[%clk 0:02:53]} 16. exd6 {[%clk 0:02:34]}  cxd6 {[%clk 0:02:48]} 17. Bg3 {[%clk 0:02:28]}  Qf6 {[%clk 0:02:45]} 18. c3 {[%clk 0:02:05]}  Qd8 {[%clk 0:02:42]} 19. Ned4 {[%clk 0:02:02]}  Bb7 {[%clk 0:02:19]} 20. Bc2 {[%clk 0:01:56]}  Qb6 {[%clk 0:02:18]} 21. Rhe1 {[%clk 0:01:49]}  O-O-O {[%clk 0:02:15]} 22. Qe2 {[%clk 0:01:33]}  Kb8 {[%clk 0:02:14]} 23. c4 {[%clk 0:01:28]}  bxc4 {[%clk 0:02:08]} 24. Qxc4 {[%clk 0:01:23]}  Ka8 {[%clk 0:02:05]} 25. Bf2 {[%clk 0:01:24]}  Rb8 {[%clk 0:02:05]} 26. Nb3 {[%clk 0:01:13]}  Rhc8 {[%clk 0:02:01]} 27. Nfd4 {[%clk 0:01:12]}  Ne4 {[%clk 0:01:56]} 28. Qe2 {[%clk 0:01:03]}  Nxf2 {[%clk 0:01:50]} 29. Qxf2 {[%clk 0:01:01]}  e5 {[%clk 0:01:49]} 30. Nf5 {[%clk 0:01:01]}  Qxf2 {[%clk 0:01:40]} 0-1


[Site "https://www.chess.com"]

[Event "Titled Tuesday Blitz January 10 Late 2023"]
[White "Solon, Nathan"]
[Black "Golding, Alex"]
[WhiteFideId "2017229"]
[BlackFideId "427241"]
[WhiteElo "2306"]
[BlackElo "2318"]
[Result "1-0"]
[Round "04"]
[TimeControl "180+2"]
[Date "2023.01.10"]
[WhiteClock "0:02:00"]
[BlackClock "0:01:49"]

1. Nf3 {[%clk 0:00:00]}  Nf6 {[%clk 0:00:00]} 2. g3 {[%clk 0:03:00]}  d6 {[%clk 0:02:59]} 3. Bg2 {[%clk 0:03:01]}  e5 {[%clk 0:02:57]} 4. c4 {[%clk 0:02:58]}  Nc6 {[%clk 0:02:57]} 5. Nc3 {[%clk 0:02:57]}  Be7 {[%clk 0:02:56]} 6. O-O {[%clk 0:02:55]}  Be6 {[%clk 0:02:56]} 7. d4 {[%clk 0:02:55]}  Bxc4 {[%clk 0:02:52]} 8. dxe5 {[%clk 0:02:52]}  dxe5 {[%clk 0:02:36]} 9. Qa4 {[%clk 0:02:30]}  b5 {[%clk 0:02:30]} 10. Nxb5 {[%clk 0:02:30]}  Bd5 {[%clk 0:02:03]} 11. Nc3 {[%clk 0:02:27]}  O-O {[%clk 0:01:55]} 12. Nxd5 {[%clk 0:02:13]}  Qxd5 {[%clk 0:01:54]} 13. Ng5 {[%clk 0:02:00]}  e4 {[%clk 0:01:49]} 14. Nxe4 {[%clk 0:02:00]} 1-0


[Site "https://www.chess.com"]

[Event "Titled Tuesday Blitz January 10 Late 2023"]
[White "Tica, Sven"]
[Black "Rian, Kapriaga"]
[WhiteFideId "14526948"]
[BlackFideId "7103263"]
[WhiteElo "2431"]
[BlackElo "2089"]
[Result "0-1"]
[Round "04"]
[TimeControl "180+2"]
[Date "2023.01.10"]
[WhiteClock "0:01:21"]
[BlackClock "0:00:17"]

1. e4 {[%clk 0:00:00]}  c6 {[%clk 0:00:00]} 2. Nf3 {[%clk 0:03:00]}  d5 {[%clk 0:02:55]} 3. d3 {[%clk 0:02:56]}  dxe4 {[%clk 0:02:49]} 4. dxe4 {[%clk 0:02:57]}  Qxd1+ {[%clk 0:02:47]} 5. Kxd1 {[%clk 0:02:58]}  Bg4 {[%clk 0:02:46]} 6. Nd2 {[%clk 0:02:59]}  e6 {[%clk 0:02:43]} 7. Be2 {[%clk 0:02:59]}  Bc5 {[%clk 0:02:38]} 8. Ne1 {[%clk 0:02:59]}  Nf6 {[%clk 0:02:37]} 9. Nd3 {[%clk 0:02:58]}  Bb6 {[%clk 0:02:30]} 10. f3 {[%clk 0:02:57]}  Bh5 {[%clk 0:02:22]} 11. Nc4 {[%clk 0:02:56]}  Bc7 {[%clk 0:02:21]} 12. a4 {[%clk 0:02:57]}  Nbd7 {[%clk 0:02:17]} 13. Be3 {[%clk 0:02:56]}  a6 {[%clk 0:02:15]} 14. a5 {[%clk 0:02:55]}  O-O-O {[%clk 0:02:13]} 15. c3 {[%clk 0:02:54]}  Ne5 {[%clk 0:02:10]} 16. Nxe5 {[%clk 0:02:51]}  Bxe5 {[%clk 0:02:05]} 17. Kc2 {[%clk 0:02:50]}  Bc7 {[%clk 0:02:04]} 18. h4 {[%clk 0:02:50]}  Bg6 {[%clk 0:02:03]} 19. Bg5 {[%clk 0:02:47]}  h6 {[%clk 0:02:01]} 20. Be3 {[%clk 0:02:28]}  Nd7 {[%clk 0:01:50]} 21. h5 {[%clk 0:02:26]}  Bh7 {[%clk 0:01:45]} 22. b4 {[%clk 0:02:17]}  f5 {[%clk 0:01:45]} 23. exf5 {[%clk 0:02:18]}  exf5 {[%clk 0:01:43]} 24. Bd4 {[%clk 0:02:07]}  Rhe8 {[%clk 0:01:43]} 25. Rhe1 {[%clk 0:02:03]}  f4 {[%clk 0:01:39]} 26. Bf1 {[%clk 0:02:03]}  Ne5 {[%clk 0:01:30]} 27. Rad1 {[%clk 0:02:02]}  Nc4 {[%clk 0:01:24]} 28. Kb3 {[%clk 0:01:51]}  Ne3 {[%clk 0:01:05]} 29. Bxe3 {[%clk 0:01:29]}  Rxe3 {[%clk 0:01:04]} 30. Nb2 {[%clk 0:01:27]}  Rxd1 {[%clk 0:00:53]} 31. Rxd1 {[%clk 0:01:28]}  Be5 {[%clk 0:00:34]} 32. Bd3 {[%clk 0:01:29]}  Bg8+ {[%clk 0:00:32]} 33. Kc2 {[%clk 0:01:29]}  Bf7 {[%clk 0:00:24]} 34. Bf5+ {[%clk 0:01:25]}  Kb8 {[%clk 0:00:22]} 35. Rd3 {[%clk 0:01:21]}  Re2+ {[%clk 0:00:20]} 36. Rd2 {[%clk 0:01:20]}  Bb3+ {[%clk 0:00:18]} 37. Kd3 {[%clk 0:01:21]}  Re3# {[%clk 0:00:17]} 0-1


[Site "https://www.chess.com"]

[Event "Titled Tuesday Blitz January 10 Late 2023"]
[White "O`Gorman, Tom"]
[Black "Roman, Rodrigo"]
[WhiteFideId "2508249"]
[BlackFideId "3701220"]
[WhiteElo "2355"]
[BlackElo "2058"]
[Result "0-1"]
[Round "04"]
[TimeControl "180+2"]
[Date "2023.01.10"]
[WhiteClock "0:01:19"]
[BlackClock "0:00:07"]

1. e4 {[%clk 0:00:00]}  c5 {[%clk 0:00:00]} 2. Nf3 {[%clk 0:03:00]}  Nc6 {[%clk 0:02:54]} 3. d4 {[%clk 0:03:00]}  cxd4 {[%clk 0:02:54]} 4. Nxd4 {[%clk 0:03:00]}  e5 {[%clk 0:02:54]} 5. Nb5 {[%clk 0:03:01]}  d6 {[%clk 0:02:54]} 6. N1c3 {[%clk 0:03:01]}  a6 {[%clk 0:02:54]} 7. Na3 {[%clk 0:02:59]}  b5 {[%clk 0:02:55]} 8. Nd5 {[%clk 0:03:00]}  Nge7 {[%clk 0:02:56]} 9. Bg5 {[%clk 0:02:59]}  h6 {[%clk 0:02:56]} 10. Bh4 {[%clk 0:02:58]}  Qa5+ {[%clk 0:02:55]} 11. c3 {[%clk 0:02:58]}  Nxd5 {[%clk 0:02:41]} 12. exd5 {[%clk 0:02:56]}  Ne7 {[%clk 0:02:37]} 13. Be2 {[%clk 0:02:48]}  g5 {[%clk 0:02:35]} 14. Bg3 {[%clk 0:02:46]}  Bb7 {[%clk 0:02:14]} 15. O-O {[%clk 0:02:46]}  Bxd5 {[%clk 0:02:03]} 16. c4 {[%clk 0:02:45]}  bxc4 {[%clk 0:02:00]} 17. Nxc4 {[%clk 0:02:45]}  Qd8 {[%clk 0:01:57]} 18. Rc1 {[%clk 0:02:45]}  Bxc4 {[%clk 0:01:45]} 19. Bxc4 {[%clk 0:02:37]}  Bg7 {[%clk 0:01:44]} 20. Qf3 {[%clk 0:02:35]}  O-O {[%clk 0:01:43]} 21. Rfd1 {[%clk 0:02:17]}  a5 {[%clk 0:01:41]} 22. h4 {[%clk 0:02:17]}  Rc8 {[%clk 0:01:03]} 23. hxg5 {[%clk 0:02:16]}  hxg5 {[%clk 0:01:02]} 24. Qh5 {[%clk 0:02:11]}  Nf5 {[%clk 0:01:03]} 25. Bd5 {[%clk 0:01:53]}  Rxc1 {[%clk 0:00:54]} 26. Rxc1 {[%clk 0:01:47]}  Nd4 {[%clk 0:00:46]} 27. Kh2 {[%clk 0:01:48]}  Qf6 {[%clk 0:00:24]} 28. Rc7 {[%clk 0:01:35]}  Qh6 {[%clk 0:00:10]} 29. Qxh6 {[%clk 0:01:33]}  Bxh6 {[%clk 0:00:07]} 30. Rd7 {[%clk 0:01:29]}  Nf5 {[%clk 0:00:08]} 31. Kh3 {[%clk 0:01:26]}  Nxg3 {[%clk 0:00:08]} 32. Kxg3 {[%clk 0:01:26]}  Bg7 {[%clk 0:00:08]} 33. Rxd6 {[%clk 0:01:25]}  e4 {[%clk 0:00:07]} 34. b3 {[%clk 0:01:23]}  Be5+ {[%clk 0:00:02]} 35. Kg4 {[%clk 0:01:23]}  Bxd6 {[%clk 0:00:02]} 36. Bxe4 {[%clk 0:01:23]}  Kg7 {[%clk 0:00:03]} 37. Kxg5 {[%clk 0:01:24]}  f6+ {[%clk 0:00:03]} 38. Kf5 {[%clk 0:01:23]}  Re8 {[%clk 0:00:04]} 39. f4 {[%clk 0:01:24]}  Bc5 {[%clk 0:00:05]} 40. g4 {[%clk 0:01:23]}  Rd8 {[%clk 0:00:05]} 41. g5 {[%clk 0:01:23]}  fxg5 {[%clk 0:00:05]} 42. fxg5 {[%clk 0:01:23]}  Be3 {[%clk 0:00:06]} 43. g6 {[%clk 0:01:23]}  Rd1 {[%clk 0:00:06]} 44. Ke6 {[%clk 0:01:20]}  Ra1 {[%clk 0:00:07]} 45. a4 {[%clk 0:01:20]}  Bd2 {[%clk 0:00:07]} 46. Kd5 {[%clk 0:01:20]}  Bb4 {[%clk 0:00:05]} 47. Kc4 {[%clk 0:01:19]}  Re1 {[%clk 0:00:06]} 48. Bc2 {[%clk 0:01:19]}  Re6 {[%clk 0:00:06]} 49. Kb5 {[%clk 0:01:19]}  Re5+ {[%clk 0:00:06]} 50. Kc4 {[%clk 0:01:19]}  Kf6 {[%clk 0:00:06]} 51. Kd4 {[%clk 0:01:18]}  Rc5 {[%clk 0:00:06]} 52. Bd3 {[%clk 0:01:19]}  Rc8 {[%clk 0:00:06]} 53. Be4 {[%clk 0:01:18]}  Rd8+ {[%clk 0:00:06]} 54. Kc4 {[%clk 0:01:18]}  Ke5 {[%clk 0:00:05]} 55. Bc2 {[%clk 0:01:17]}  Rc8+ {[%clk 0:00:05]} 56. Kd3 {[%clk 0:01:15]}  Rc3+ {[%clk 0:00:05]} 57. Kd2 {[%clk 0:01:16]}  Rxb3+ {[%clk 0:00:06]} 58. Kd1 {[%clk 0:01:16]}  Rg3 {[%clk 0:00:06]} 59. Kc1 {[%clk 0:01:17]}  Kd4 {[%clk 0:00:07]} 60. Kb2 {[%clk 0:01:17]}  Kc4 {[%clk 0:00:06]} 61. Kb1 {[%clk 0:01:17]}  Kc3 {[%clk 0:00:06]} 62. Be4 {[%clk 0:01:17]}  Rg1+ {[%clk 0:00:06]} 63. Ka2 {[%clk 0:01:17]}  Kc4 {[%clk 0:00:05]} 64. Kb2 {[%clk 0:01:18]}  Bc3+ {[%clk 0:00:05]} 65. Kc2 {[%clk 0:01:16]}  Rg5 {[%clk 0:00:04]} 66. Bd3+ {[%clk 0:01:16]}  Kb4 {[%clk 0:00:03]} 67. Bb5 {[%clk 0:01:16]}  Bg7 {[%clk 0:00:04]} 68. Kd3 {[%clk 0:01:15]}  Rxg6 {[%clk 0:00:04]} 69. Ke4 {[%clk 0:01:14]}  Rb6 {[%clk 0:00:04]} 70. Kf5 {[%clk 0:01:15]}  Bc3 {[%clk 0:00:02]} 71. Ke4 {[%clk 0:01:16]}  Rxb5 {[%clk 0:00:03]} 72. axb5 {[%clk 0:01:16]}  Kxb5 {[%clk 0:00:03]} 73. Kd3 {[%clk 0:01:17]}  Kb4 {[%clk 0:00:04]} 74. Kc2 {[%clk 0:01:17]}  a4 {[%clk 0:00:05]} 75. Kb1 {[%clk 0:01:18]}  Kb3 {[%clk 0:00:06]} 76. Kc1 {[%clk 0:01:18]}  a3 {[%clk 0:00:06]} 77. Kd1 {[%clk 0:01:19]}  a2 {[%clk 0:00:07]} 0-1


[Site "https://www.chess.com"]